Workbook

Sheet Sheet1
A1: 客户 | B1: 品种 | C1: 装港 | D1: 目的港 | E1: 吃水 | F1: 海里数 | G1: 船名 | H1: 油耗成本（元） | I1: 预计装卸时间 | J1: 固定成本（月） | K1: 单价 | L1: 第三载毛利 | M1: 第四载毛利 | O1: 第五载毛利 | P1: 第六载毛利 | Q1: 第七载毛利
A2: 华贸 | B2: 纸浆 | C2: 南沙粮食码头 | D2: 双水 | E2: 5000吨船以内 | F2: 82 | G2: 3303、3308 | H2: =F2/5.5*255*1.8 -> 6843.272727 | I2: 5日 | J2: 68970 | K2: 15 | L2: =1600*K2*3-J2-H2*3 -> -17499.81818 | M2: =1600*K2*4-J2-H2*4 -> -343.0909091 | O2: =1600*K2*5-J2-H2*5 -> 16813.63636 | P2: =1600*K2*6-J2-H2*6 -> 33970.36364
F3: 105 | G3: 3301 | H3: =F3/5.5*498*1.8 -> 17113.09091 | I3: 5日 | J3: 111819 | K3: 15 | L3: =2500*K3*3-J3-H3*3 -> -50658.27273 | M3: =2500*K3*4-J3-H3*4 -> -30271.36364 | O3: =2500*K3*5-J3-H3*5 -> -9884.454545 | P3: =2500*K3*6-J3-H3*6 -> 10502.45455
B4: 纸浆 | C4: 高栏 | D4: 双水 | E4: 5000吨船以内 | F4: 40 | G4: 3303、3308 | H4: 3338.181818 | I4: 4日 | J4: 68970 | K4: 12.28 | L4: =1600*K4*3-J4-H4*3 -> -20040.54545 | M4: =1600*K4*4-J4-H4*4 -> -3730.727273 | O4: =1600*K4*5-J4-H4*5 -> 12579.09091 | P4: =1600*K4*6-J4-H4*6 -> 28888.90909 | Q4: =1600*K4*7-J4-H4*7 -> 45198.72727
F5: 40 | G5: 3301 | H5: 6519.272727 | I5: 4日 | J5: 111819 | K5: 12.28 | L5: =2500*K5*3-J5-H5*3 -> -39276.81818 | M5: =2500*K5*4-J5-H5*4 -> -15096.09091 | O5: =2500*K5*5-J5-H5*5 -> 9084.636364 | P5: =2500*K5*6-J5-H5*6 -> 33265.36364 | Q5: =2500*K5*7-J5-H5*7 -> 57446.09091
A6: 泰来 | B6: 竹浆 | C6: 广裕、益嘉 | D6: 理文 | E6: 2500吨以内 | F6: 18 | G6: 3303、3308 | H6: 1502.181818 | I6: 3日 | J6: 68970 | K6: 10.92 | L6: =1600*K6*3-J6-H6*3 -> -21060.54545 | M6: =1600*K6*4-J6-H6*4 -> -5090.727273 | O6: =1600*K6*5-J6-H6*5 -> 10879.09091 | P6: =1600*K6*6-J6-H6*6 -> 26848.90909 | Q6: =1600*K6*7-J6-H6*7 -> 42818.72727
F7: 18 | G7: 3301 | H7: 2933.672727 | I7: 4日 | J7: 111819 | K7: 10.92 | L7: =2500*K7*3-J7-H7*3 -> -38720.01818 | M7: =2500*K7*4-J7-H7*4 -> -14353.69091 | O7: =2500*K7*5-J7-H7*5 -> 10012.63636 | P7: =2500*K7*6-J7-H7*6 -> 34378.96364 | Q7: =2500*K7*7-J7-H7*7 -> 58745.29091
B8: 纸浆 | C8: 南沙粮食码头 | D8: 新会亚太 | E8: 4000吨以内 | F8: 75 | G8: 3303、3308 | H8: =F8/5.5*255*1.8 -> 6259.090909 | I8: 4日 | J8: 68970 | K8: 15.38 | L8: =1600*K8*3-J8-H8*3 -> -13923.27273 | M8: =1600*K8*4-J8-H8*4 -> 4425.636364 | O8: =1600*K8*5-J8-H8*5 -> 22774.54545 | P8: =1600*K8*6-J8-H8*6 -> 41123.45455 | Q8: =1600*K8*7-J8-H8*7 -> 59472.36364
F9: 100 | G9: 3301 | H9: =F9/5.5*498*1.8 -> 16298.18182 | I9: 5日 | J9: 111819 | K9: 15.38 | L9: =2500*K9*3-J9-H9*3 -> -45363.54545 | M9: =2500*K9*4-J9-H9*4 -> -23211.72727 | O9: =2500*K9*5-J9-H9*5 -> -1059.909091 | P9: =2500*K9*6-J9-H9*6 -> 21091.90909
B10: 纸浆 | C10: 南沙粮食码头 | D10: 新会 | E10: 5000吨船以内 | F10: 82 | G10: 3303、3308 | H10: 6843.272727 | I10: 5日 | J10: 68970 | K10: 15.38 | L10: =1600*K10*3-J10-H10*3 -> -15675.81818 | M10: =1600*K10*4-J10-H10*4 -> 2088.909091 | O10: =1600*K10*5-J10-H10*5 -> 19853.63636 | P10: =1600*K10*6-J10-H10*6 -> 37618.36364
F11: 105 | G11: 3301 | H11: 17113.09091 | I11: 5日 | J11: 111819 | K11: 15.38 | L11: =2500*K11*3-J11-H11*3 -> -47808.27273 | M11: =2500*K11*4-J11-H11*4 -> -26471.36364 | O11: =2500*K11*5-J11-H11*5 -> -5134.454545 | P11: =2500*K11*6-J11-H11*6 -> 16202.45455
B12: 纸浆 | C12: 高栏 | D12: 云浮 | E12: 3000吨以内 | F12: 153 | G12: 3303、3308 | H12: 12768.54545 | I12: 6日 | J12: 68970 | K12: 22.75 | L12: =1600*K12*3-J12-H12*3 -> 1924.363636 | M12: =1600*K12*4-J12-H12*4 -> 25555.81818 | O12: =1600*K12*5-J12-H12*5 -> 49187.27273
F13: 153 | G13: 3301 | H13: 24936.21818 | I13: 6日 | J13: 111819 | K13: 22.75 | L13: =2500*K13*3-J13-H13*3 -> -16002.65455 | M13: =2500*K13*4-J13-H13*4 -> 15936.12727 | O13: =2500*K13*5-J13-H13*5 -> 47874.90909
B14: 纸浆 | C14: 南沙粮食码头 | D14: 云浮 | E14: 3000吨以内 | F14: 125 | G14: 3303、3308 | H14: =F14/5.5*255*1.8 -> 10431.81818 | I14: 6日 | J14: 68970 | K14: 21.75 | L14: =1600*K14*3-J14-H14*3 -> 4134.545455 | M14: =1600*K14*4-J14-H14*4 -> 28502.72727 | O14: =1600*K14*5-J14-H14*5 -> 52870.90909
F15: 125 | G15: 3301 | H15: =F15/5.5*498*1.8 -> 20372.72727 | I15: 6日 | J15: 111819 | K15: 21.75 | L15: =2500*K15*3-J15-H15*3 -> -9812.181818 | M15: =2500*K15*4-J15-H15*4 -> 24190.09091 | O15: =2500*K15*5-J15-H15*5 -> 58192.36364
B16: 纸浆 | C16: 天马 | D16: 云浮 | E16: 3000吨以内 | F16: 136 | G16: 3303、3308 | H16: 11349.81818 | I16: 6日 | J16: 68970 | K16: 21.84 | L16: =1600*K16*3-J16-H16*3 -> 1812.545455 | M16: =1600*K16*4-J16-H16*4 -> 25406.72727 | O16: =1600*K16*5-J16-H16*5 -> 49000.90909
F17: 161 | G17: 3301 | H17: 26240.07273 | I17: 6日 | J17: 111819 | K17: 21.84 | L17: =2500*K17*3-J17-H17*3 -> -26739.21818 | M17: =2500*K17*4-J17-H17*4 -> 1620.709091 | O17: =2500*K17*5-J17-H17*5 -> 29980.63636
A18: 港顺 | B18: 纸浆 | C18: 珠海高栏 | D18: 亚太 | E18: 3000吨以内 | F18: 30 | G18: 3303、3308 | H18: 2503.636364 | I18: 4日 | J18: 68970 | K18: 10.92 | L18: =1600*K18*3-J18-H18*3 -> -24064.90909 | M18: =1600*K18*4-J18-H18*4 -> -9096.545455 | O18: =1600*K18*5-J18-H18*5 -> 5871.818182 | P18: =1600*K18*6-J18-H18*6 -> 20840.18182 | Q18: =1600*K18*7-J18-H18*7 -> 35808.54545
F19: 30 | G19: 3301 | H19: 4889.454545 | I19: 4日 | J19: 111819 | K19: 10.92 | L19: =2500*K19*3-J19-H19*3 -> -44587.36364 | M19: =2500*K19*4-J19-H19*4 -> -22176.81818 | O19: =2500*K19*5-J19-H19*5 -> 233.7272727 | P19: =2500*K19*6-J19-H19*6 -> 22644.27273 | Q19: =2500*K19*7-J19-H19*7 -> 45054.81818
B20: 纸浆 | C20: 珠海高栏 | D20: 东莞理文 | E20: 2500吨船左右 | F20: 111 | G20: 3303、3308 | H20: =F20/5.5*255*1.8 -> 9263.454545 | I20: 5日 | J20: 68970 | K20: 16.38 | L20: =1600*K20*3-J20-H20*3 -> -18136.36364 | M20: =1600*K20*4-J20-H20*4 -> -1191.818182 | O20: =1600*K20*5-J20-H20*5 -> 15752.72727 | P20: =1600*K20*6-J20-H20*6 -> 32697.27273
F21: 111 | G21: 3301 | H21: =F21/5.5*498*1.8 -> 18090.98182 | I21: 5日 | J21: 111819 | K21: 16.38 | L21: =2500*K21*3-J21-H21*3 -> -43241.94545 | M21: =2500*K21*4-J21-H21*4 -> -20382.92727 | O21: =2500*K21*5-J21-H21*5 -> 2476.090909 | P21: =2500*K21*6-J21-H21*6 -> 25335.10909
B22: 纸浆 | C22: 珠海高栏 | D22: 黄埔广裕 | E22: 2500吨船左右 | F22: 115 | G22: 3303、3308 | H22: 9597.272727 | I22: 5日 | J22: 68970 | K22: 16.38 | L22: =1600*K22*3-J22-H22*3 -> -19137.81818 | M22: =1600*K22*4-J22-H22*4 -> -2527.090909 | O22: =1600*K22*5-J22-H22*5 -> 14083.63636 | P22: =1600*K22*6-J22-H22*6 -> 30694.36364
F23: 115 | G23: 3301 | H23: 18742.90909 | I23: 5日 | J23: 111819 | K23: 16.38 | L23: =2500*K23*3-J23-H23*3 -> -45197.72727 | M23: =2500*K23*4-J23-H23*4 -> -22990.63636 | O23: =2500*K23*5-J23-H23*5 -> -783.5454545 | P23: =2500*K23*6-J23-H23*6 -> 21423.54545
B24: 纸浆 | C24: 新会 | D24: 东莞理文 | E24: 2500吨船左右 | F24: 90 | G24: 3303、3308 | H24: 7510.909091 | I24: 5日 | J24: 68970 | K24: 16.38 | L24: =1600*K24*3-J24-H24*3 -> -12878.72727 | M24: =1600*K24*4-J24-H24*4 -> 5818.363636 | O24: =1600*K24*5-J24-H24*5 -> 24515.45455 | P24: =1600*K24*6-J24-H24*6 -> 43212.54545
F25: 115 | G25: 3301 | H25: 18742.90909 | I25: 5日 | J25: 111819 | K25: 16.38 | L25: =2500*K25*3-J25-H25*3 -> -45197.72727 | M25: =2500*K25*4-J25-H25*4 -> -22990.63636 | O25: =2500*K25*5-J25-H25*5 -> -783.5454545 | P25: =2500*K25*6-J25-H25*6 -> 21423.54545
A26: 华糖 | B26: 原糖 | C26: 南沙粮食码头 | D26: 新会双水码头 | E26: 5000吨船以内 | F26: 80 | G26: 3303、3308 | H26: =F26/5.5*255*1.8 -> 6676.363636 | I26: 5日 | J26: 68970 | K26: 16.29 | L26: =1600*K26*3-J26-H26*3 -> -10807.09091 | M26: =1600*K26*4-J26-H26*4 -> 8580.545455 | O26: =1600*K26*5-J26-H26*5 -> 27968.18182 | P26: =1600*K26*6-J26-H26*6 -> 47355.81818
F27: 105 | G27: 3301 | H27: =F27/5.5*498*1.8 -> 17113.09091 | I27: 5日 | J27: 111819 | K27: 16.29 | L27: =2500*K27*3-J27-H27*3 -> -40983.27273 | M27: =2500*K27*4-J27-H27*4 -> -17371.36364 | O27: =2500*K27*5-J27-H27*5 -> 6240.545455 | P27: =2500*K27*6-J27-H27*6 -> 29852.45455
A28: 东糖 | B28: 原糖 | C28: 锚地 | D28: 东莞东糖 | E28: 2000吨船以内 | F28: 33 | G28: 3303、3308 | H28: =F28/5.5*255*1.8 -> 2754 | I28: 4日 | J28: 68970 | K28: 15.15 | L28: =1600*K28*3-J28-H28*3 -> -4512 | M28: =1600*K28*4-J28-H28*4 -> 16974 | O28: =1600*K28*5-J28-H28*5 -> 38460 | P28: =1600*K28*6-J28-H28*6 -> 59946 | Q28: =1600*K28*7-J28-H28*7 -> 81432
B29: 原糖 | C29: 新港 | D29: 东莞东糖 | E29: 2000吨船以内 | F29: 12 | G29: 3303、3308 | H29: 1001.454545 | I29: 4日 | J29: 68970 | K29: 10.6 | L29: -21094.36364 | M29: -5135.818182 | O29: 10822.72727 | P29: 26781.27273 | Q29: =1600*K29*7-J29-H29*7 -> 42739.81818
A30: 市粮 | B30: 小麦 | C30: 新港 | D30: 穗粮 | E30: 2000吨船以内 | F30: 34 | G30: 3303、3308 | H30: 2837.454545 | I30: 6日 | J30: 68970 | K30: 13.56 | L30: -12394.36364 | M30: 6464.181818 | O30: 25322.72727
B31: 小麦 | C31: 东莞 | D31: 穗粮 | E31: 2000吨船以内 | F31: 29 | G31: 3303、3308 | H31: 2420.181818 | I31: 6日 | J31: 68970 | K31: 14.56 | L31: -6342.545455 | M31: 14533.27273 | O31: 35409.09091
B32: 小麦 | C32: 深圳 | D32: 穗粮 | E32: 2000吨船以内 | F32: 28 | G32: 3303、3308 | H32: 2336.727273 | I32: 6日 | J32: 68970 | K32: 14.56 | L32: -6092.181818 | M32: 14867.09091 | O32: 35826.36364
B33: 小麦 | C33: 南沙粮食码头 | D33: 穗粮 | E33: 2000吨船以内 | F33: 20 | G33: 3303、3308 | H33: 1669.090909 | I33: 6日 | J33: 68970 | K33: 9.92 | L33: -26361.27273 | M33: -12158.36364 | O33: 2044.545455
B34: 小麦 | C34: 东莞 | D34: 海珠库 | E34: 1500吨以内 | F34: 11 | K34: 10.92
B35: 小麦 | C35: 新港 | D35: 海珠库 | E35: 1500吨以内 | F35: 7 | K35: 9.92
B36: 小麦 | C36: 深圳 | D36: 海珠库 | E36: 1500吨以内 | F36: 52 | K36: 10.92
B37: 小麦 | C37: 东莞 | D37: 小塘 | E37: 2000吨以内 | F37: 50 | G37: 3303、3308 | H37: =F37/5.5*255*1.8 -> 4172.727273 | I37: 6日 | J37: 68970 | K37: 15.47 | L37: =1600*K37*3-J37-H37*3 -> -7232.181818 | M37: =1600*K37*4-J37-H37*4 -> 13347.09091 | O37: =1600*K37*5-J37-H37*5 -> 33926.36364
B38: 小麦 | C38: 新港 | D38: 小塘 | E38: 2000吨以内 | F38: 52 | G38: 3303、3308 | H38: 4339.636364 | I38: 6日 | J38: 68970 | K38: 15.47 | L38: -7732.909091 | M38: 12679.45455 | O38: 33091.81818
B39: 小麦 | C39: 深圳 | D39: 小塘 | E39: 2000吨以内 | F39: 78 | G39: 3303、3308 | H39: 6509.454545 | I39: 6日 | J39: 68970 | K39: 16.38 | L39: -9874.363636 | M39: 9824.181818 | O39: 29522.72727
B40: 小麦 | C40: 南沙粮食码头 | D40: 新港 | E40: 3000吨以内 | F40: 27 | G40: 3303、3308 | H40: 2253.272727 | I40: 6日 | J40: 68970 | K40: 11.74 | L40: -19377.81818 | M40: -2847.090909 | O40: 13683.63636
F41: 27 | G41: 3301 | H41: =F41/5.5*498*1.8 -> 4400.509091 | I41: 6日 | J41: 111819 | K41: 11.74 | L41: =2500*K41*3-J41-H41*3 -> -36970.52727 | M41: =2500*K41*4-J41-H41*4 -> -12021.03636 | O41: =2500*K41*5-J41-H41*5 -> 12928.45455
A42: 肇福 | B42: 小麦 | C42: 黄埔新港 | D42: 肇庆三榕港 | E42: 2500吨以内 | F42: 88 | G42: 3303、3308 | H42: =F42/5.5*255*1.8 -> 7344 | I42: 6日 | J42: 68970 | K42: 17.65 | L42: =1600*K42*3-J42-H42*3 -> -6282 | M42: =1600*K42*4-J42-H42*4 -> 14614 | O42: =1600*K42*5-J42-H42*5 -> 35510
F43: 88 | G43: 3301 | H43: 14342.4 | I43: 6日 | J43: 111819 | K43: 17.65 | L43: =2500*K43*3-J43-H43*3 -> -22471.2 | M43: =2500*K43*4-J43-H43*4 -> 7311.4 | O43: =2500*K43*5-J43-H43*5 -> 37094
B44: 小麦 | C44: 南沙粮食码头 | D44: 肇庆三榕港 | E44: 2500吨以内 | F44: 103 | G44: 3303、3308 | H44: 8595.818182 | I44: 6日 | J44: 68970 | K44: 19.02 | L44: =1600*K44*3-J44-H44*3 -> -3461.454545 | M44: =1600*K44*4-J44-H44*4 -> 18374.72727 | O44: =1600*K44*5-J44-H44*5 -> 40210.90909
F45: 103 | G45: 3301 | H45: 16787.12727 | I45: 6日 | J45: 111819 | K45: 19.02 | L45: =2500*K45*3-J45-H45*3 -> -19530.38182 | M45: =2500*K45*4-J45-H45*4 -> 11232.49091 | O45: =2500*K45*5-J45-H45*5 -> 41995.36364
B46: 小麦 | C46: 黄埔新港 | D46: 肇庆福加德 | E46: 2000吨以内 | F46: 83 | G46: 3303、3308 | H46: 6926.727273 | I46: 5日 | J46: 68970 | K46: 17.65 | L46: =1600*K46*3-J46-H46*3 -> -5030.181818 | M46: =1600*K46*4-J46-H46*4 -> 16283.09091 | O46: =1600*K46*5-J46-H46*5 -> 37596.36364 | P46: =1600*K46*6-J46-H46*6 -> 58909.63636
B47: 小麦 | C47: 南沙粮食码头 | D47: 肇庆福加德 | E47: 2000吨以内 | F47: 98 | G47: 3303、3308 | H47: 8178.545455 | I47: 5日 | J47: 68970 | K47: 18.11 | L47: -6577.636364 | M47: 14219.81818 | O47: 35017.27273 | P47: 55814.72727
B48: 小麦 | C48: 东莞麻涌 | D48: 肇庆三榕港 | E48: 2500吨以内 | F48: 92 | G48: 3303、3308 | H48: =F48/5.5*255*1.8 -> 7677.818182 | I48: 5日 | J48: 68970 | K48: 18.65 | L48: -2483.454545 | M48: 19678.72727 | O48: 41840.90909 | P48: 64003.09091
F49: 92 | G49: 3301 | H49: =F49/5.5*498*1.8 -> 14994.32727 | I49: 5日 | J49: 111819 | K49: 18.65 | L49: =2500*K49*3-J49-H49*3 -> -16926.98182 | M49: =2500*K49*4-J49-H49*4 -> 14703.69091 | O49: =2500*K49*5-J49-H49*5 -> 46334.36364 | P49: =2500*K49*6-J49-H49*6 -> 77965.03636
B50: 小麦 | C50: 东莞麻涌 | D50: 肇庆福加德 | E50: 2000吨以内 | F50: 88 | G50: 3303、3308 | H50: 7344 | I50: 5日 | J50: 68970 | K50: 18.65 | L50: =1600*K50*3-J50-H50*3 -> -1482 | M50: =1600*K50*4-J50-H50*4 -> 21014 | O50: =1600*K50*5-J50-H50*5 -> 43510 | P50: =1600*K50*6-J50-H50*6 -> 66006
B51: 小麦 | C51: 深圳 | D51: 肇庆三榕港 | E51: 2500吨以内 | F51: 124 | G51: 3303、3308 | H51: 10348.36364 | I51: 5日 | J51: 68970 | K51: 20.02 | L51: -3919.090909 | M51: 17764.54545 | O51: 39448.18182 | P51: 61131.81818
F52: 124 | G52: 3301 | H52: =F52/5.5*498*1.8 -> 20209.74545 | I52: 5日 | J52: 111819 | K52: 20.02 | L52: =2500*K52*3-J52-H52*3 -> -22298.23636 | M52: =2500*K52*4-J52-H52*4 -> 7542.018182 | O52: =2500*K52*5-J52-H52*5 -> 37382.27273 | P52: =2500*K52*6-J52-H52*6 -> 67222.52727
B53: 小麦 | C53: 深圳 | D53: 肇庆福加德 | E53: 2000吨以内 | F53: 119 | G53: 3303、3308 | H53: =F53/5.5*255*1.8 -> 9931.090909 | I53: 5日 | J53: 68970 | K53: 20.02 | L53: =1600*K53*3-J53-H53*3 -> -2667.272727 | M53: =1600*K53*4-J53-H53*4 -> 19433.63636 | O53: =1600*K53*5-J53-H53*5 -> 41534.54545 | P53: =1600*K53*6-J53-H53*6 -> 63635.45455
A54: 广州港船务 | B54: 纸浆 | C54: 南沙粮食码头 | D54: 新会天马 | E54: 3000吨船以内 | F54: 82 | G54: 3303、3308 | H54: =F54/5.5*255*1.8 -> 6843.272727 | I54: 4日 | J54: 68970 | K54: 19.5 | L54: 4100.181818 | M54: 28456.90909 | O54: 52813.63636 | P54: 77170.36364 | Q54: =1600*K54*7-J54-H54*7 -> 101527.0909
F55: 105 | G55: 3301 | H55: 17113.09091 | I55: 4日 | J55: 111819 | K55: 19.5 | L55: =2500*K55*3-J55-H55*3 -> -16908.27273 | M55: =2500*K55*4-J55-H55*4 -> 14728.63636 | O55: =2500*K55*5-J55-H55*5 -> 46365.54545 | P55: =2500*K55*6-J55-H55*6 -> 78002.45455 | Q55: =2500*K55*7-J55-H55*7 -> 109639.3636
B56: 纸浆 | C56: 南沙粮食码头 | D56: 云浮 | E56: 3000吨以内 | F56: 125 | G56: 3303、3308 | H56: 10431.81818 | I56: 6日 | J56: 68970 | K56: 23 | L56: =1600*K56*3-J56-H56*3 -> 10134.54545 | M56: =1600*K56*4-J56-H56*4 -> 36502.72727 | O56: =1600*K56*5-J56-H56*5 -> 62870.90909
F57: 125 | G57: 3301 | H57: 20372.72727 | I57: 6日 | J57: 111819 | K57: 23 | L57: =2500*K57*3-J57-H57*3 -> -437.1818182 | M57: =2500*K57*4-J57-H57*4 -> 36690.09091 | O57: =2500*K57*5-J57-H57*5 -> 73817.36364
B58: 粮食 | C58: 沙角 | D58: 新港、新沙 | E58: 4000吨以内 | F58: 25 | G58: 3303、3308 | H58: 2086.363636 | I58: 4日 | J58: 68970 | K58: 8.8 | L58: =1600*K58*3-J58-H58*3 -> -32989.09091 | M58: =1600*K58*4-J58-H58*4 -> -20995.45455 | O58: =1600*K58*5-J58-H58*5 -> -9001.818182 | P58: =1600*K58*6-J58-H58*6 -> 2991.818182 | Q58: =1600*K58*7-J58-H58*7 -> 14985.45455
F59: 25 | G59: 3301 | H59: =F59/5.5*498*1.8 -> 4074.545455 | I59: 4日 | J59: 111819 | K59: 8.8 | L59: =2500*K59*3-J59-H59*3 -> -58042.63636 | M59: =2500*K59*4-J59-H59*4 -> -40117.18182 | O59: =2500*K59*5-J59-H59*5 -> -22191.72727 | P59: =2500*K59*6-J59-H59*6 -> -4266.272727 | Q59: =2500*K59*7-J59-H59*7 -> 13659.18182
A62: 3301按每小时5.5海里，每小时油耗88升，油价5.67元/升计算；3303、3308按每小时5.5海里，每小时油耗45升，油价5.67元/升计算
C64: 成本类别 | D64: 新通河3301 | E64: 新通河3303 | F64: 新通河3308
C65: 管理成本 | D65: 5000 | E65: 3000 | F65: 3000
C66: 船上人工成本 | D66: 52000 | E66: 39000 | F66: 38000
C67: 折旧成本 | D67: 38000 | E67: 14250 | F67: 15000
C68: 维修备件 | D68: 13719 | E68: 8970 | F68: 8970
C69: 保险 | D69: 3100 | E69: 3000 | F69: 3000
C70: 桥梁险 | D70: 700 | E70: 700 | F70: 700
C71: 合计 | D71: =SUM(D65:D70) -> 112519 | E71: =SUM(E65:E70) -> 68920 | F71: =SUM(F65:F70) -> 68670

Sheet Sheet2

Sheet Sheet3
